[Event "Late-Titled-Tuesday-Blitz-July-09-2024"]
[Site "Chess.com"]
[Date "2024.07.09"]
[Round "4"]
[White "falzehope0"]
[Black "chipmunknau"]
[Result "0-1"]
[WhiteElo "2462"]
[BlackElo "2706"]
[TimeControl "180+1"]
[EndTime "14:39:15 PDT"]
[Termination "chipmunknau won by checkmate"]

1. d4 {[%clk 0:03:00.9]} 1... Nf6 {[%clk 0:02:59.4]} 2. e3 {[%clk 0:03:01.7]}
2... e6 {[%clk 0:02:59.5]} 3. Bd3 {[%clk 0:03:01.6]} 3... c5 {[%clk 0:02:59.7]}
4. f4 {[%clk 0:03:01.8]} 4... b6 {[%clk 0:02:58.5]} 5. Nf3 {[%clk 0:03:00]} 5...
Bb7 {[%clk 0:02:58.7]} 6. O-O {[%clk 0:02:59.9]} 6... Be7 {[%clk 0:02:59.2]} 7.
Nbd2 {[%clk 0:02:56.5]} 7... O-O {[%clk 0:02:59.2]} 8. Qe1 {[%clk 0:02:56]} 8...
Nc6 {[%clk 0:02:58.2]} 9. c3 {[%clk 0:02:55.8]} 9... d6 {[%clk 0:02:55.4]} 10.
a3 {[%clk 0:02:49.7]} 10... Rc8 {[%clk 0:02:55.6]} 11. e4 {[%clk 0:02:49.4]}
11... cxd4 {[%clk 0:02:54.7]} 12. cxd4 {[%clk 0:02:49]} 12... e5 {[%clk
0:02:50.1]} 13. d5 {[%clk 0:02:47.4]} 13... Nd4 {[%clk 0:02:50.1]} 14. Nxd4
{[%clk 0:02:42.9]} 14... exd4 {[%clk 0:02:49.6]} 15. Qg3 {[%clk 0:02:30.2]}
15... Nd7 {[%clk 0:02:44.6]} 16. b4 {[%clk 0:02:22.1]} 16... f5 {[%clk
0:02:35.7]} 17. Bb2 {[%clk 0:02:14.2]} 17... Bf6 {[%clk 0:02:33.4]} 18. Qh3
{[%clk 0:02:08.3]} 18... fxe4 {[%clk 0:02:08]} 19. Nxe4 {[%clk 0:02:00.9]} 19...
Bxd5 {[%clk 0:01:59]} 20. Nxd6 {[%clk 0:01:59.8]} 20... g6 {[%clk 0:01:46.2]}
21. Nxc8 {[%clk 0:01:49]} 21... Qxc8 {[%clk 0:01:47.1]} 22. Rac1 {[%clk
0:01:43.3]} 22... Qd8 {[%clk 0:01:46.8]} 23. Bc4 {[%clk 0:01:14.2]} 23... Bxc4
{[%clk 0:01:35.6]} 24. Rxc4 {[%clk 0:01:15.1]} 24... b5 {[%clk 0:01:35.9]} 25.
Qe6+ {[%clk 0:01:11.6]} 25... Kg7 {[%clk 0:01:25.5]} 26. Rc6 {[%clk 0:01:05.2]}
26... Re8 {[%clk 0:01:21.2]} 27. Qd5 {[%clk 0:01:02]} 27... Nb6 {[%clk
0:01:20.9]} 28. Qxd8 {[%clk 0:00:47.1]} 28... Rxd8 {[%clk 0:01:21.8]} 29. Rc7+
{[%clk 0:00:47.3]} 29... Kg8 {[%clk 0:01:21]} 30. Rxa7 {[%clk 0:00:42]} 30...
Nc4 {[%clk 0:01:20.9]} 31. Ba1 {[%clk 0:00:40.8]} 31... Ne3 {[%clk 0:01:07.5]}
32. Rc1 {[%clk 0:00:35]} 32... d3 {[%clk 0:00:49.4]} 33. Bxf6 {[%clk 0:00:33.2]}
33... d2 {[%clk 0:00:49.8]} 34. Rb1 {[%clk 0:00:16.7]} 34... Rc8 {[%clk
0:00:35.8]} 35. Kf2 {[%clk 0:00:07.3]} 35... Rc1 {[%clk 0:00:20.2]} 36. Ra8+
{[%clk 0:00:01.3]} 36... Kf7 {[%clk 0:00:19.7]} 37. Bb2 {[%clk 0:00:01]} 37...
Rxb1 {[%clk 0:00:16.9]} 38. Ra7+ {[%clk 0:00:01.5]} 38... Ke6 {[%clk 0:00:15.8]}
39. Ra6+ {[%clk 0:00:01]} 39... Kd7 {[%clk 0:00:15.1]} 40. Kxe3 {[%clk
0:00:01.9]} 40... d1=Q {[%clk 0:00:14.9]} 41. Ra7+ {[%clk 0:00:02.7]} 41... Kc6
{[%clk 0:00:14.7]} 42. Bd4 {[%clk 0:00:02.7]} 42... Rb3+ {[%clk 0:00:12.8]} 43.
Ke4 {[%clk 0:00:03.2]} 43... Qe2+ {[%clk 0:00:11.7]} 44. Be3 {[%clk 0:00:01.5]}
44... Qxe3# {[%clk 0:00:11.7]} 0-1

[Event "Late-Titled-Tuesday-Blitz-July-09-2024"]
[Site "Chess.com"]
[Date "2024.07.09"]
[Round "4"]
[White "BillCoe"]
[Black "szachmistrz2500"]
[Result "1/2-1/2"]
[WhiteElo "2090"]
[BlackElo "2403"]
[TimeControl "180+1"]
[EndTime "14:39:15 PDT"]
[Termination "Game drawn - insufficient material"]

1. e4 {[%clk 0:03:00.9]} 1... c5 {[%clk 0:02:55.8]} 2. Nf3 {[%clk 0:03:00.9]}
2... Nc6 {[%clk 0:02:55.8]} 3. Bb5 {[%clk 0:03:00.9]} 3... g6 {[%clk 0:02:47.2]}
4. O-O {[%clk 0:03:00.6]} 4... Bg7 {[%clk 0:02:46.8]} 5. Re1 {[%clk 0:03:00.3]}
5... e5 {[%clk 0:02:45.1]} 6. c3 {[%clk 0:02:56.9]} 6... Nge7 {[%clk 0:02:43.9]}
7. h3 {[%clk 0:02:56.6]} 7... O-O {[%clk 0:02:42.9]} 8. d3 {[%clk 0:02:55.1]}
8... d5 {[%clk 0:02:38.9]} 9. exd5 {[%clk 0:02:52]} 9... Qxd5 {[%clk 0:02:39]}
10. Nbd2 {[%clk 0:02:37.2]} 10... Bf5 {[%clk 0:02:37.8]} 11. Ne4 {[%clk
0:02:29.9]} 11... b6 {[%clk 0:02:36.6]} 12. Bg5 {[%clk 0:02:14.1]} 12... f6
{[%clk 0:02:33.7]} 13. Bh4 {[%clk 0:02:05.6]} 13... Rad8 {[%clk 0:02:32]} 14.
Qe2 {[%clk 0:02:04.5]} 14... g5 {[%clk 0:02:26.6]} 15. Bg3 {[%clk 0:02:02.9]}
15... Kh8 {[%clk 0:02:26]} 16. Rad1 {[%clk 0:02:00.9]} 16... Ng6 {[%clk
0:02:25.5]} 17. Nh2 {[%clk 0:01:41.8]} 17... Nf4 {[%clk 0:02:19.5]} 18. Bxf4
{[%clk 0:01:41.3]} 18... gxf4 {[%clk 0:02:18.4]} 19. Qf3 {[%clk 0:01:36.2]}
19... Bg6 {[%clk 0:02:15.9]} 20. h4 {[%clk 0:01:32.6]} 20... f5 {[%clk
0:01:59.2]} 21. Ng5 {[%clk 0:01:30.6]} 21... Qxf3 {[%clk 0:01:45.9]} 22. Nhxf3
{[%clk 0:01:30.7]} 22... Rd6 {[%clk 0:01:17]} 23. Bxc6 {[%clk 0:01:25.5]} 23...
Rxc6 {[%clk 0:01:17]} 24. Nxe5 {[%clk 0:01:25.4]} 24... Rd6 {[%clk 0:01:16.8]}
25. Nxg6+ {[%clk 0:01:21.2]} 25... hxg6 {[%clk 0:01:16.5]} 26. Ne6 {[%clk
0:01:16.9]} 26... Re8 {[%clk 0:01:12.7]} 27. Nxg7 {[%clk 0:01:15.4]} 27... Rxe1+
{[%clk 0:01:12.5]} 28. Rxe1 {[%clk 0:01:14.7]} 28... Kxg7 {[%clk 0:01:13.2]} 29.
Re7+ {[%clk 0:01:11.1]} 29... Kh6 {[%clk 0:01:13.4]} 30. Rxa7 {[%clk 0:01:11.1]}
30... Rxd3 {[%clk 0:01:13.5]} 31. Ra6 {[%clk 0:01:06.7]} 31... Rd1+ {[%clk
0:01:10.4]} 32. Kh2 {[%clk 0:01:06.6]} 32... Rd2 {[%clk 0:01:09.4]} 33. Rxb6
{[%clk 0:01:06.6]} 33... Rxf2 {[%clk 0:01:09.6]} 34. a4 {[%clk 0:01:05.8]} 34...
Rd2 {[%clk 0:00:59.5]} 35. Kg1 {[%clk 0:00:56.2]} 35... c4 {[%clk 0:00:58.5]}
36. a5 {[%clk 0:00:56.2]} 36... Rd1+ {[%clk 0:00:58.6]} 37. Kf2 {[%clk
0:00:55.4]} 37... Ra1 {[%clk 0:00:57.9]} 38. a6 {[%clk 0:00:55.2]} 38... Kh5
{[%clk 0:00:57.2]} 39. Kf3 {[%clk 0:00:52.4]} 39... Rf1+ {[%clk 0:00:56.5]} 40.
Ke2 {[%clk 0:00:52.1]} 40... Ra1 {[%clk 0:00:57]} 41. Rc6 {[%clk 0:00:48.5]}
41... Ra2 {[%clk 0:00:52.5]} 42. Kf3 {[%clk 0:00:43.5]} 42... Rxb2 {[%clk
0:00:50.2]} 43. Rxc4 {[%clk 0:00:43.5]} 43... Ra2 {[%clk 0:00:49.5]} 44. Rc6
{[%clk 0:00:43.6]} 44... Kh6 {[%clk 0:00:43]} 45. Kxf4 {[%clk 0:00:42.2]} 45...
Rxg2 {[%clk 0:00:42.7]} 46. a7 {[%clk 0:00:40.1]} 46... Rg4+ {[%clk 0:00:41.6]}
47. Ke5 {[%clk 0:00:39.4]} 47... Ra4 {[%clk 0:00:41.3]} 48. Rc7 {[%clk
0:00:39.2]} 48... Kh5 {[%clk 0:00:41]} 49. Kf6 {[%clk 0:00:37.7]} 49... Kg4
{[%clk 0:00:40.3]} 50. Kxg6 {[%clk 0:00:37]} 50... f4 {[%clk 0:00:40.4]} 51. h5
{[%clk 0:00:36.6]} 51... Ra6+ {[%clk 0:00:40.3]} 52. Kg7 {[%clk 0:00:34.3]}
52... Kxh5 {[%clk 0:00:40.7]} 53. Rf7 {[%clk 0:00:31.5]} 53... Kg4 {[%clk
0:00:39.8]} 54. c4 {[%clk 0:00:32]} 54... f3 {[%clk 0:00:39.3]} 55. c5 {[%clk
0:00:32.3]} 55... Kg3 {[%clk 0:00:39.3]} 56. Kf8 {[%clk 0:00:28.4]} 56... f2
{[%clk 0:00:39.1]} 57. Ke8 {[%clk 0:00:28.1]} 57... Rxa7 {[%clk 0:00:38.5]} 58.
Rxf2 {[%clk 0:00:24.9]} 58... Kxf2 {[%clk 0:00:37.8]} 59. Kd8 {[%clk 0:00:23.4]}
59... Ke3 {[%clk 0:00:36.8]} 60. c6 {[%clk 0:00:23.2]} 60... Kd4 {[%clk
0:00:36.3]} 61. c7 {[%clk 0:00:23.4]} 61... Ra8+ {[%clk 0:00:31.3]} 62. c8=Q
{[%clk 0:00:23.3]} 62... Rxc8+ {[%clk 0:00:31.5]} 63. Kxc8 {[%clk 0:00:24.2]}
1/2-1/2

[Event "Late-Titled-Tuesday-Blitz-July-09-2024"]
[Site "Chess.com"]
[Date "2024.07.09"]
[Round "4"]
[White "mind1mover"]
[Black "rpragchess"]
[Result "0-1"]
[WhiteElo "2820"]
[BlackElo "3106"]
[TimeControl "180+1"]
[EndTime "14:39:17 PDT"]
[Termination "rpragchess won on time"]

1. Nf3 {[%clk 0:03:00.9]} 1... Nf6 {[%clk 0:02:59.9]} 2. c4 {[%clk 0:02:59.5]}
2... c5 {[%clk 0:02:53.1]} 3. Nc3 {[%clk 0:02:58.5]} 3... Nc6 {[%clk 0:02:53.3]}
4. e3 {[%clk 0:02:58.3]} 4... g6 {[%clk 0:02:42.7]} 5. d4 {[%clk 0:02:58.4]}
5... Bg7 {[%clk 0:02:43.2]} 6. d5 {[%clk 0:02:57.4]} 6... Nb8 {[%clk 0:02:39.6]}
7. e4 {[%clk 0:02:53.9]} 7... O-O {[%clk 0:02:39.6]} 8. e5 {[%clk 0:02:51.1]}
8... Ne8 {[%clk 0:02:39.3]} 9. Bf4 {[%clk 0:02:41.8]} 9... d6 {[%clk 0:02:38.7]}
10. Be2 {[%clk 0:02:37.9]} 10... Bg4 {[%clk 0:02:37.9]} 11. exd6 {[%clk
0:02:13.6]} 11... Nxd6 {[%clk 0:02:38.8]} 12. O-O {[%clk 0:02:08.8]} 12... Bxf3
{[%clk 0:02:35.6]} 13. Bxf3 {[%clk 0:02:09.7]} 13... Nxc4 {[%clk 0:02:33]} 14.
d6 {[%clk 0:01:48.6]} 14... Nc6 {[%clk 0:02:32.1]} 15. dxe7 {[%clk 0:01:44.7]}
15... Qxe7 {[%clk 0:02:31.1]} 16. Nd5 {[%clk 0:01:29.8]} 16... Qd8 {[%clk
0:02:12.6]} 17. Bc7 {[%clk 0:01:03.6]} 17... Qc8 {[%clk 0:01:57.4]} 18. Qc2
{[%clk 0:01:01.1]} 18... b5 {[%clk 0:01:40.6]} 19. Rad1 {[%clk 0:00:51.4]} 19...
Qa6 {[%clk 0:00:55.8]} 20. b3 {[%clk 0:00:44.7]} 20... Nb2 {[%clk 0:00:55.4]}
21. Rd2 {[%clk 0:00:30.4]} 21... c4 {[%clk 0:00:48.7]} 22. Bd6 {[%clk
0:00:06.6]} 22... Nd4 {[%clk 0:00:48.5]} 23. Rxd4 {[%clk 0:00:05.8]} 23... Bxd4
{[%clk 0:00:48.6]} 24. Bxf8 {[%clk 0:00:05.6]} 24... Rxf8 {[%clk 0:00:49.2]} 25.
Ne7+ {[%clk 0:00:02.7]} 25... Kg7 {[%clk 0:00:47.5]} 26. Nc6 {[%clk 0:00:03.6]}
26... Bf6 {[%clk 0:00:47.5]} 27. a4 {[%clk 0:00:02.2]} 27... cxb3 {[%clk
0:00:43.2]} 28. Qxb3 {[%clk 0:00:03.1]} 28... bxa4 {[%clk 0:00:43.6]} 29. Qd5
{[%clk 0:00:02]} 29... a3 {[%clk 0:00:42.8]} 30. h4 {[%clk 0:00:01.7]} 30... a2
{[%clk 0:00:40]} 31. Nb4 {[%clk 0:00:01.4]} 31... a1=Q {[%clk 0:00:39.1]} 32.
Nxa6 {[%clk 0:00:02.3]} 32... Qxa6 {[%clk 0:00:39.6]} 33. h5 {[%clk 0:00:02.8]}
33... Qe6 {[%clk 0:00:38.5]} 34. Qb5 {[%clk 0:00:02.2]} 34... Qb6 {[%clk
0:00:37.5]} 35. Qd5 {[%clk 0:00:01.8]} 35... Na4 {[%clk 0:00:31.8]} 36. Qe4
{[%clk 0:00:01.4]} 36... Nc3 {[%clk 0:00:31.7]} 37. Qd3 {[%clk 0:00:01.8]} 37...
Qd4 {[%clk 0:00:31.1]} 38. Qc2 {[%clk 0:00:01.9]} 38... Rb8 {[%clk 0:00:28.6]}
39. hxg6 {[%clk 0:00:02.2]} 39... hxg6 {[%clk 0:00:28.7]} 40. Re1 {[%clk
0:00:01.6]} 40... Qf4 {[%clk 0:00:25.4]} 41. Qd3 {[%clk 0:00:01.5]} 41... Rb2
{[%clk 0:00:20.6]} 42. g3 {[%clk 0:00:01.5]} 42... Qd4 {[%clk 0:00:19.7]} 43.
Qf1 {[%clk 0:00:01.2]} 43... Qc5 {[%clk 0:00:18.8]} 44. Kg2 {[%clk 0:00:01.3]}
44... Bd4 {[%clk 0:00:18.5]} 0-1

[Event "Late-Titled-Tuesday-Blitz-July-09-2024"]
[Site "Chess.com"]
[Date "2024.07.09"]
[Round "4"]
[White "GlavkonVVS"]
[Black "glebus008"]
[Result "1-0"]
[WhiteElo "2581"]
[BlackElo "2397"]
[TimeControl "180+1"]
[EndTime "14:39:18 PDT"]
[Termination "GlavkonVVS won on time"]

1. c4 {[%clk 0:03:00.9]} 1... e6 {[%clk 0:02:58.7]} 2. Nc3 {[%clk 0:03:01]} 2...
d5 {[%clk 0:02:58.7]} 3. d4 {[%clk 0:03:01.4]} 3... c5 {[%clk 0:02:58.8]} 4. e3
{[%clk 0:02:59.6]} 4... Nf6 {[%clk 0:02:57.8]} 5. Nf3 {[%clk 0:02:55.7]} 5... a6
{[%clk 0:02:58.1]} 6. a3 {[%clk 0:02:54.2]} 6... dxc4 {[%clk 0:02:57.7]} 7. Bxc4
{[%clk 0:02:53.8]} 7... b5 {[%clk 0:02:58]} 8. Be2 {[%clk 0:02:53.7]} 8... Bb7
{[%clk 0:02:58.2]} 9. O-O {[%clk 0:02:52.3]} 9... Nbd7 {[%clk 0:02:58.2]} 10.
dxc5 {[%clk 0:02:40.2]} 10... Bxc5 {[%clk 0:02:55.7]} 11. b4 {[%clk 0:02:40.8]}
11... Bb6 {[%clk 0:02:48.8]} 12. Bb2 {[%clk 0:02:41.1]} 12... O-O {[%clk
0:02:48.8]} 13. a4 {[%clk 0:02:36.3]} 13... bxa4 {[%clk 0:02:23.3]} 14. Rxa4
{[%clk 0:02:29.2]} 14... Nd5 {[%clk 0:02:22.1]} 15. Nxd5 {[%clk 0:02:24.3]}
15... Bxd5 {[%clk 0:02:21.1]} 16. Qa1 {[%clk 0:02:23.7]} 16... Nf6 {[%clk
0:02:12.8]} 17. Rxa6 {[%clk 0:02:19.5]} 17... Rxa6 {[%clk 0:02:12.2]} 18. Qxa6
{[%clk 0:02:19.5]} 18... Bc7 {[%clk 0:01:57.8]} 19. Rc1 {[%clk 0:02:08]} 19...
Qd6 {[%clk 0:01:57]} 20. Qxd6 {[%clk 0:01:57.5]} 20... Bxd6 {[%clk 0:01:57.9]}
21. b5 {[%clk 0:01:56.9]} 21... Rb8 {[%clk 0:01:57.1]} 22. Nd4 {[%clk
0:01:54.8]} 22... h5 {[%clk 0:01:42.3]} 23. f3 {[%clk 0:01:39.1]} 23... Nd7
{[%clk 0:01:30]} 24. Nc6 {[%clk 0:01:07.4]} 24... Bxc6 {[%clk 0:01:20]} 25. Rxc6
{[%clk 0:01:06.8]} 25... Bc5 {[%clk 0:01:20.2]} 26. Kf2 {[%clk 0:01:05]} 26...
Bb6 {[%clk 0:01:12.4]} 27. Bd4 {[%clk 0:00:59.5]} 27... Bxd4 {[%clk 0:01:02.5]}
28. exd4 {[%clk 0:00:59.6]} 28... Kf8 {[%clk 0:01:01.6]} 29. Ke3 {[%clk
0:00:51.2]} 29... Ke7 {[%clk 0:01:01.5]} 30. h4 {[%clk 0:00:48.3]} 30... Ra8
{[%clk 0:00:52.2]} 31. g4 {[%clk 0:00:39.2]} 31... Ra3+ {[%clk 0:00:48.3]} 32.
Kf4 {[%clk 0:00:34.8]} 32... Ra4 {[%clk 0:00:44.2]} 33. Rc4 {[%clk 0:00:31.9]}
33... Ra2 {[%clk 0:00:39.3]} 34. Bd3 {[%clk 0:00:27.4]} 34... Rb2 {[%clk
0:00:38.4]} 35. Rc7 {[%clk 0:00:24.4]} 35... Rb4 {[%clk 0:00:35.6]} 36. Ke3
{[%clk 0:00:21.3]} 36... Kd8 {[%clk 0:00:20.8]} 37. Ra7 {[%clk 0:00:20.6]} 37...
Rb3 {[%clk 0:00:10.5]} 38. gxh5 {[%clk 0:00:18.3]} 38... Ke7 {[%clk 0:00:07.4]}
39. Kd2 {[%clk 0:00:16.3]} 39... Kd6 {[%clk 0:00:07.4]} 40. Kc2 {[%clk
0:00:15.6]} 40... Rb4 {[%clk 0:00:07.3]} 41. Kc3 {[%clk 0:00:15.5]} 1-0

[Event "Late-Titled-Tuesday-Blitz-July-09-2024"]
[Site "Chess.com"]
[Date "2024.07.09"]
[Round "4"]
[White "KevinGeorgeMicheal"]
[Black "Sek_Konstantin"]
[Result "0-1"]
[WhiteElo "2542"]
[BlackElo "2722"]
[TimeControl "180+1"]
[EndTime "14:39:21 PDT"]
[Termination "Sek_Konstantin won on time"]

1. e4 {[%clk 0:02:58.3]} 1... e5 {[%clk 0:02:59.4]} 2. Nf3 {[%clk 0:02:57.1]}
2... Nc6 {[%clk 0:02:59.1]} 3. Nc3 {[%clk 0:02:55.1]} 3... Nf6 {[%clk
0:02:58.3]} 4. d4 {[%clk 0:02:55.6]} 4... exd4 {[%clk 0:02:57.7]} 5. Nxd4 {[%clk
0:02:56.2]} 5... Bb4 {[%clk 0:02:57.4]} 6. Nxc6 {[%clk 0:02:55.9]} 6... bxc6
{[%clk 0:02:57.1]} 7. Bd3 {[%clk 0:02:56]} 7... O-O {[%clk 0:02:56.4]} 8. O-O
{[%clk 0:02:56]} 8... Re8 {[%clk 0:02:55]} 9. Bd2 {[%clk 0:02:35.7]} 9... d6
{[%clk 0:02:47.6]} 10. h3 {[%clk 0:02:34.3]} 10... Rb8 {[%clk 0:02:42.4]} 11.
Re1 {[%clk 0:02:29.8]} 11... Nd7 {[%clk 0:02:37.9]} 12. a3 {[%clk 0:02:17.6]}
12... Bc5 {[%clk 0:02:37.9]} 13. b4 {[%clk 0:02:14]} 13... Bd4 {[%clk
0:02:37.9]} 14. Rb1 {[%clk 0:02:13.3]} 14... Qf6 {[%clk 0:02:35.1]} 15. e5
{[%clk 0:01:56.6]} 15... dxe5 {[%clk 0:01:38]} 16. Ne4 {[%clk 0:01:50.1]} 16...
Qd8 {[%clk 0:01:36.6]} 17. Ng5 {[%clk 0:01:28]} 17... Nf6 {[%clk 0:01:29.1]} 18.
Bc4 {[%clk 0:01:25.9]} 18... Bxf2+ {[%clk 0:01:03.7]} 19. Kxf2 {[%clk
0:00:59.4]} 19... Qd4+ {[%clk 0:01:02.7]} 20. Be3 {[%clk 0:01:00]} 20... Qxc4
{[%clk 0:01:02.7]} 21. Bxa7 {[%clk 0:00:59.1]} 21... Ra8 {[%clk 0:01:01]} 22.
Be3 {[%clk 0:00:56.1]} 22... Rxa3 {[%clk 0:00:54.7]} 23. Qe2 {[%clk 0:00:50.7]}
23... Qxe2+ {[%clk 0:00:50.7]} 24. Rxe2 {[%clk 0:00:50.3]} 24... h6 {[%clk
0:00:48.9]} 25. Bc1 {[%clk 0:00:44]} 25... Ra2 {[%clk 0:00:43.9]} 26. Nf3 {[%clk
0:00:41]} 26... Ba6 {[%clk 0:00:42.8]} 27. Rxe5 {[%clk 0:00:36.4]} 27... Rxc2+
{[%clk 0:00:42.5]} 28. Kg1 {[%clk 0:00:32.2]} 28... Rxe5 {[%clk 0:00:37.4]} 29.
Nxe5 {[%clk 0:00:30.8]} 29... Ne4 {[%clk 0:00:28.1]} 30. Bf4 {[%clk 0:00:27.2]}
30... g5 {[%clk 0:00:27.7]} 31. Be3 {[%clk 0:00:25.1]} 31... f5 {[%clk
0:00:24.6]} 32. Nd7 {[%clk 0:00:21.2]} 32... f4 {[%clk 0:00:22.5]} 33. Bd4
{[%clk 0:00:17.9]} 33... Rd2 {[%clk 0:00:21]} 34. Nc5 {[%clk 0:00:12.5]} 34...
Rxd4 {[%clk 0:00:15.7]} 35. Nxa6 {[%clk 0:00:12.6]} 35... Nc3 {[%clk 0:00:15.2]}
36. Re1 {[%clk 0:00:07.8]} 36... Rd2 {[%clk 0:00:15.3]} 37. Nxc7 {[%clk
0:00:05.4]} 37... Ne2+ {[%clk 0:00:15.4]} 38. Kf1 {[%clk 0:00:03]} 38... Ng3+
{[%clk 0:00:15.4]} 0-1

[Event "Late-Titled-Tuesday-Blitz-July-09-2024"]
[Site "Chess.com"]
[Date "2024.07.09"]
[Round "4"]
[White "Polish_fighter3000"]
[Black "IlanSchnaider"]
[Result "0-1"]
[WhiteElo "3055"]
[BlackElo "2856"]
[TimeControl "180+1"]
[EndTime "14:39:22 PDT"]
[Termination "IlanSchnaider won on time"]

1. d4 {[%clk 0:03:00.9]} 1... d5 {[%clk 0:02:59.2]} 2. Bf4 {[%clk 0:03:00.3]}
2... Nf6 {[%clk 0:02:58.9]} 3. e3 {[%clk 0:03:00.1]} 3... c5 {[%clk 0:02:59.1]}
4. c3 {[%clk 0:02:58.6]} 4... Nc6 {[%clk 0:02:58.9]} 5. Nd2 {[%clk 0:02:57.7]}
5... e6 {[%clk 0:02:57.4]} 6. Bd3 {[%clk 0:02:55.2]} 6... Bd6 {[%clk 0:02:57.4]}
7. Bxd6 {[%clk 0:02:54.8]} 7... Qxd6 {[%clk 0:02:57.6]} 8. f4 {[%clk 0:02:55.3]}
8... cxd4 {[%clk 0:02:48.4]} 9. cxd4 {[%clk 0:02:56.2]} 9... O-O {[%clk
0:02:39.8]} 10. a3 {[%clk 0:02:56]} 10... a5 {[%clk 0:02:34.9]} 11. Ngf3 {[%clk
0:02:54.6]} 11... b6 {[%clk 0:02:35.4]} 12. Qe2 {[%clk 0:02:52.8]} 12... Nb8
{[%clk 0:02:17.5]} 13. g4 {[%clk 0:02:16.7]} 13... Ba6 {[%clk 0:02:08.5]} 14.
Bxa6 {[%clk 0:02:14.1]} 14... Nxa6 {[%clk 0:02:08.2]} 15. g5 {[%clk 0:02:12.4]}
15... Ne4 {[%clk 0:02:08.4]} 16. Nxe4 {[%clk 0:02:10.5]} 16... dxe4 {[%clk
0:02:08.7]} 17. Ne5 {[%clk 0:01:44.1]} 17... Nb8 {[%clk 0:01:31.8]} 18. Qb5
{[%clk 0:01:32.1]} 18... a4 {[%clk 0:01:30]} 19. Nc4 {[%clk 0:01:16.1]} 19...
Qd7 {[%clk 0:00:54]} 20. Qxd7 {[%clk 0:01:02.6]} 20... Nxd7 {[%clk 0:00:54.1]}
21. Nd6 {[%clk 0:01:03.1]} 21... f5 {[%clk 0:00:43.4]} 22. Ke2 {[%clk
0:00:55.1]} 22... Ra5 {[%clk 0:00:29]} 23. Rac1 {[%clk 0:00:54.3]} 23... Rd5
{[%clk 0:00:29.2]} 24. Rc6 {[%clk 0:00:26.2]} 24... Nb8 {[%clk 0:00:22.6]} 25.
Rxb6 {[%clk 0:00:26]} 25... Nd7 {[%clk 0:00:22.8]} 26. Ra6 {[%clk 0:00:25.8]}
26... Nb8 {[%clk 0:00:23.2]} 27. Rb6 {[%clk 0:00:26.4]} 27... Nd7 {[%clk
0:00:23.6]} 28. Rc6 {[%clk 0:00:27.1]} 28... Nb8 {[%clk 0:00:23.9]} 29. Rhc1
{[%clk 0:00:27.6]} 29... Nxc6 {[%clk 0:00:22.6]} 30. Rxc6 {[%clk 0:00:28.5]}
30... Rb8 {[%clk 0:00:23]} 31. Nc4 {[%clk 0:00:26.6]} 31... Rdb5 {[%clk
0:00:20.5]} 32. Rxe6 {[%clk 0:00:09.2]} 32... Rc8 {[%clk 0:00:20.3]} 33. Re5
{[%clk 0:00:03.6]} 33... Rxe5 {[%clk 0:00:14.6]} 34. Nxe5 {[%clk 0:00:04.5]}
34... Rc2+ {[%clk 0:00:15.1]} 35. Kd1 {[%clk 0:00:04.8]} 35... Rxb2 {[%clk
0:00:15.8]} 36. h4 {[%clk 0:00:01.3]} 36... Rb3 {[%clk 0:00:16]} 37. d5 {[%clk
0:00:01.2]} 37... Kf8 {[%clk 0:00:12.4]} 38. Kd2 {[%clk 0:00:01]} 38... Rxa3
{[%clk 0:00:12.7]} 39. d6 {[%clk 0:00:01.9]} 39... Ke8 {[%clk 0:00:10.4]} 40. h5
{[%clk 0:00:02.1]} 40... Rb3 {[%clk 0:00:09.3]} 41. h6 {[%clk 0:00:01.5]} 41...
gxh6 {[%clk 0:00:09.4]} 42. gxh6 {[%clk 0:00:01.8]} 42... a3 {[%clk 0:00:10]}
0-1

[Event "Late-Titled-Tuesday-Blitz-July-09-2024"]
[Site "Chess.com"]
[Date "2024.07.09"]
[Round "4"]
[White "swayamsm"]
[Black "Arysya"]
[Result "0-1"]
[WhiteElo "2623"]
[BlackElo "2897"]
[TimeControl "180+1"]
[EndTime "14:39:22 PDT"]
[Termination "Arysya won by resignation"]

1. d4 {[%clk 0:03:00.9]} 1... Nf6 {[%clk 0:02:57.9]} 2. c4 {[%clk 0:03:00.7]}
2... d6 {[%clk 0:02:57.7]} 3. Nc3 {[%clk 0:03:00.4]} 3... Bf5 {[%clk 0:02:58.1]}
4. g3 {[%clk 0:02:59.4]} 4... e5 {[%clk 0:02:57.2]} 5. Bg2 {[%clk 0:02:59.1]}
5... c6 {[%clk 0:02:57.7]} 6. Nf3 {[%clk 0:02:54.8]} 6... Qc7 {[%clk 0:02:52.8]}
7. O-O {[%clk 0:02:52.7]} 7... Be7 {[%clk 0:02:51.9]} 8. h3 {[%clk 0:02:35.2]}
8... O-O {[%clk 0:02:51.5]} 9. g4 {[%clk 0:02:34.7]} 9... Be6 {[%clk 0:02:49.6]}
10. b3 {[%clk 0:02:33.7]} 10... Re8 {[%clk 0:02:46]} 11. Be3 {[%clk 0:02:30.4]}
11... Bf8 {[%clk 0:02:40]} 12. Qc2 {[%clk 0:02:16.9]} 12... e4 {[%clk
0:02:03.9]} 13. Nd2 {[%clk 0:02:15.3]} 13... d5 {[%clk 0:02:03.7]} 14. Qb2
{[%clk 0:02:01.1]} 14... h5 {[%clk 0:01:52.3]} 15. g5 {[%clk 0:01:31.3]} 15...
Nh7 {[%clk 0:01:52.1]} 16. f4 {[%clk 0:01:24.9]} 16... Qd7 {[%clk 0:01:49.9]}
17. h4 {[%clk 0:01:17]} 17... g6 {[%clk 0:01:49.6]} 18. Rac1 {[%clk 0:01:10.6]}
18... Bg7 {[%clk 0:01:48.4]} 19. Na4 {[%clk 0:01:07.8]} 19... b6 {[%clk
0:01:45.5]} 20. Rfd1 {[%clk 0:00:50.8]} 20... Nf8 {[%clk 0:01:43.6]} 21. Nf1
{[%clk 0:00:50.9]} 21... dxc4 {[%clk 0:01:36]} 22. bxc4 {[%clk 0:00:49.6]} 22...
c5 {[%clk 0:01:34.1]} 23. Bxe4 {[%clk 0:00:34.8]} 23... Nc6 {[%clk 0:01:34.2]}
24. Qb5 {[%clk 0:00:27.6]} 24... Nxd4 {[%clk 0:01:16.9]} 25. Qxd7 {[%clk
0:00:20.5]} 25... Bxd7 {[%clk 0:01:04.8]} 26. Nc3 {[%clk 0:00:18.6]} 26... Nxe2+
{[%clk 0:00:51.2]} 27. Nxe2 {[%clk 0:00:18.5]} 27... Rxe4 {[%clk 0:00:51.9]} 28.
Kf2 {[%clk 0:00:16.3]} 28... Bg4 {[%clk 0:00:49.3]} 29. Rd3 {[%clk 0:00:14.1]}
29... Rae8 {[%clk 0:00:43.4]} 30. Neg3 {[%clk 0:00:14]} 30... R4e7 {[%clk
0:00:41.7]} 31. a4 {[%clk 0:00:14.2]} 31... Ne6 {[%clk 0:00:41.7]} 32. a5 {[%clk
0:00:13.4]} 32... Nd4 {[%clk 0:00:41.7]} 33. axb6 {[%clk 0:00:12.9]} 33... axb6
{[%clk 0:00:42.6]} 34. Rb1 {[%clk 0:00:12.1]} 34... Nf5 {[%clk 0:00:42.5]} 35.
Rxb6 {[%clk 0:00:10.5]} 35... Nxe3 {[%clk 0:00:36.6]} 36. Nxe3 {[%clk
0:00:11.4]} 36... Bd4 {[%clk 0:00:34.5]} 37. Rbb3 {[%clk 0:00:09]} 37... Ra8
{[%clk 0:00:18.9]} 38. Rd2 {[%clk 0:00:07.7]} 38... Ra4 {[%clk 0:00:17.2]} 39.
Ne2 {[%clk 0:00:07.2]} 39... Bxe2 {[%clk 0:00:15.2]} 40. Kxe2 {[%clk 0:00:08.1]}
40... Rxc4 {[%clk 0:00:15.1]} 41. Kf3 {[%clk 0:00:08.4]} 41... Rb4 {[%clk
0:00:14.5]} 42. Rxb4 {[%clk 0:00:08]} 42... Rxe3+ {[%clk 0:00:14.4]} 43. Kf2
{[%clk 0:00:08.3]} 43... Rd3+ {[%clk 0:00:13.8]} 44. Ke2 {[%clk 0:00:08]} 44...
Rxd2+ {[%clk 0:00:14.2]} 45. Kxd2 {[%clk 0:00:07.8]} 45... cxb4 {[%clk
0:00:15.1]} 46. Kd3 {[%clk 0:00:08]} 46... Bf2 {[%clk 0:00:15]} 0-1